fUST/lending_fUST_20241214
["ID","MTS","AMOUNT","RATE_DAILY","PERIOD"]
[345258862,1734119446623,-500.0,0.00024658,2]
[345258863,1734119446632,-500.0,0.00024658,2]
[345258865,1734119446643,-500.0,0.00024658,2]
[345258867,1734119446652,-500.0,0.00024658,2]
[345258869,1734119446662,-500.0,0.00024658,2]
[345258872,1734119446672,-500.0,0.00024658,2]
[345258874,1734119446682,-500.0,0.00024658,2]
[345258876,1734119446691,-500.0,0.00024658,2]
[345258878,1734119446701,-500.0,0.00024658,2]
[345258880,1734119446711,-500.0,0.00024658,2]
[345258882,1734119446720,-151.0,0.00024658,7]
[345258884,1734119446730,-500.0,0.00024658,2]
[345258886,1734119446740,-500.0,0.00024658,2]
[345258888,1734119446750,-500.0,0.00024658,2]
[345258890,1734119446762,-500.0,0.00024658,2]
[345258892,1734119446771,-500.0,0.00024658,2]
[345258894,1734119446781,-500.0,0.00024658,2]
[345258896,1734119446791,-500.0,0.00024658,2]
[345258898,1734119446800,-500.0,0.00024658,2]
[345258900,1734119446810,-500.0,0.00024658,2]
[345258902,1734119446819,-499.71411459,0.00024658,2]
[345258904,1734119446829,-500.0,0.00024658,2]
[345258906,1734119446838,-500.0,0.00024658,2]
[345258908,1734119446848,-153.658267,0.00024658,7]
[345258910,1734119446857,-151.0,0.00024658,7]
[345258912,1734119446867,-174.290669,0.00024712,2]
[345258914,1734119446876,-175.338553,0.00025011,2]
[345258916,1734119446886,-9866.01100103,0.00025358,2]
[345258918,1734119446895,-1385.67978374,0.00025627,2]
[345258920,1734119446905,-151.0,0.00025627,7]
[345258922,1734119446914,-151.0,0.00025627,7]
[345258924,1734119446923,-151.0,0.00025627,7]
[345258926,1734119446933,-151.0,0.00025627,7]
[345258928,1734119446942,-151.0,0.00025627,7]
[345258930,1734119446951,-177.411206,0.00025627,7]
[345258932,1734119446960,-247.77593666,0.00025649,2]
[345258934,1734119446970,-192.66853034,0.00025649,2]
[345258936,1734119446979,-538.23662408,0.00025649,2]
[345258938,1734119446988,-500.0,0.00025649,2]
[345258940,1734119446998,-9866.01100103,0.0002565,2]
[345258942,1734119447009,-151.0,0.00025726,7]
[345258944,1734119447019,-151.0,0.00025726,7]
[345258946,1734119447027,-151.0,0.00025726,7]
[345258948,1734119447037,-151.0,0.00025726,7]
[345258950,1734119447047,-151.0,0.00025726,7]
[345258952,1734119447056,-151.0,0.00025726,7]
[345258954,1734119447065,-151.0,0.00025726,7]
[345258956,1734119447074,-151.0,0.00025726,7]
[345258958,1734119447084,-476.453587,0.00025726,7]
[345258961,1734119447093,-476.453587,0.00025726,7]
[345258963,1734119447103,-152.040002,0.00025726,7]
[345258964,1734119447112,-152.040002,0.00025726,7]
[345258967,1734119447122,-151.0,0.00025727,7]
[345258969,1734119447132,-151.0,0.00025727,7]
[345258970,1734119447142,-151.0,0.00025727,7]
[345258972,1734119447151,-151.0,0.00025727,7]
[345258973,1734119447161,-151.0,0.00025727,7]
[345258974,1734119447170,-151.0,0.00025727,7]
[345258975,1734119447180,-467.446197,0.00025727,7]
[345258976,1734119447190,-467.446197,0.00025727,7]
[345258977,1734119447200,-467.446197,0.00025727,7]
[345258978,1734119447209,-151.0,0.00025727,7]
[345258979,1734119447221,-467.446197,0.00025727,7]
[345258980,1734119447231,-151.0,0.00025727,7]
[345258981,1734119447240,-151.0,0.00025727,7]
[345258982,1734119447250,-151.0,0.00025727,7]
[345258984,1734119447260,-151.0,0.00025727,7]
[345258985,1734119447270,-152.374991,0.00025727,7]
[345258987,1734119447280,-151.0,0.00025727,7]
[345258989,1734119447289,-151.0,0.00025727,7]
[345258991,1734119447298,-151.0,0.00025727,7]
[345258993,1734119447307,-151.0,0.00025727,7]
[345258994,1734119447317,-151.0,0.00025727,7]
[345258996,1734119447327,-476.453587,0.00025727,7]
[345258998,1734119447337,-476.453587,0.00025727,7]
[345259000,1734119447347,-152.040002,0.00025727,7]
[345259003,1734119447358,-152.040002,0.00025727,7]
[345259004,1734119447367,-435.5367887,0.00025756,2]
[345259006,1734119447377,-331.8319441,0.00025756,2]
[345259008,1734119447388,-157.530822,0.00025756,2]
[345259010,1734119447397,-609.4388751,0.00025773,2]
[345259012,1734119447407,-500.0,0.00025773,2]
[345259014,1734119447417,-500.0,0.00025773,2]
[345259016,1734119447426,-500.0,0.00025773,2]
[345259018,1734119447436,-420.0,0.00025779,2]
[345259020,1734119447445,-1385.67978371,0.0002582,2]
[345259023,1734119447455,-500.0,0.00025973,2]
[345259025,1734119447465,-501.44109045,0.00025973,2]
[345259027,1734119447475,-502.38577225,0.00025973,2]
[345259029,1734119447484,-500.0,0.00025973,2]
[345259031,1734119447494,-198.98,0.00025999,12]
[345259033,1734119447504,-151.0,0.00025999,7]
[345259045,1734119447617,-519.568301,0.00025999,7]
[345259047,1734119447628,-519.568301,0.00025999,7]
[345259049,1734119447639,-151.0,0.00025999,7]
[345259051,1734119447649,-151.0,0.00025999,7]
[345259053,1734119447658,-151.0,0.00025999,7]
[345259055,1734119447668,-151.0,0.00025999,7]
[345259057,1734119447678,-151.0,0.00025999,7]
[345259059,1734119447687,-152.448448,0.00025999,7]
[345259061,1734119447696,-151.0,0.00025999,7]
[345259063,1734119447706,-228.050507,0.00025999,7]
[345259065,1734119447716,-1162.37986076,0.00026,20]
[345259069,1734119447742,-8731.413011,0.00026,20]
[345262809,1734120292907,226.714283,0.00013973,2]
[345262960,1734120643404,-226.714283,0.00020447,2]
[345262962,1734120643414,-161.0,0.00022,2]
[345262963,1734120643424,-162.0,0.00023014,2]
[345262965,1734120643434,-169.738879,0.00023721,2]
[345262967,1734120643444,-1314.21523957,0.00023794,2]
[345263260,1734120646334,-9.39283153,0.00023794,2]
[345263262,1734120646344,-250.0,0.00023859,2]
[345263264,1734120646353,-690.0000001,0.00023969,2]
[345263266,1734120646362,-179.8680009,0.00023973,2]
[345263267,1734120646372,-250.0,0.00024374,2]
[345263269,1734120646381,-171.373379,0.00024509,2]
[345263271,1734120646391,-300.0,0.00024784,2]
[345263273,1734120646401,-2408.63432473,0.00024785,2]
[345263396,1734121396340,229.210752,0.00013973,2]
[345263518,1734121838373,-229.210752,0.00020447,2]
[345263520,1734121838382,-237.0,0.00022,2]
[345263522,1734121838392,-566.89146791,0.00022,2]
[345263524,1734121838401,-197.0,0.00022,2]
[345263526,1734121838413,-237.0,0.00022192,2]
[345263528,1734121838423,-237.0,0.00023014,2]
[345263530,1734121838432,-1270.4467662,0.00023405,2]
[345263532,1734121838441,-925.30737853,0.00023407,2]
[345263534,1734121838450,-500.0,0.00023504,2]
[345263536,1734121838459,-500.0,0.00023504,2]
[345263538,1734121838468,-500.0,0.00023504,2]
[345263540,1734121838478,-500.0,0.00023504,2]
[345263542,1734121838487,-500.0,0.00023504,2]
[345263544,1734121838496,-500.0,0.00023504,2]
[345263546,1734121838505,-500.0,0.00023504,2]
[345263548,1734121838514,-500.0,0.00023504,2]
[345263550,1734121838523,-500.0,0.00023504,2]
[345263552,1734121838532,-500.0,0.00023504,2]
[345263555,1734121838542,-500.0,0.00023504,2]
[345263557,1734121838551,-500.0,0.00023504,2]
[345263559,1734121838560,-500.0,0.00023504,2]
[345263561,1734121838572,-500.0,0.00023504,2]
[345263562,1734121838583,-500.0,0.00023504,2]
[345263564,1734121838592,-500.0,0.00023504,2]
[345263566,1734121838601,-513.00093892,0.00023504,2]
[345263568,1734121838610,-310.33289215,0.00023504,2]
[345263570,1734121838619,-321.38322807,0.00023504,2]
[345263572,1734121838628,-500.0,0.00023504,2]
[345263574,1734121838637,-500.0,0.00023504,2]
[345263576,1734121838646,-500.0,0.00023504,2]
[345263578,1734121838655,-500.0,0.00023504,2]
[345263580,1734121838663,-500.0,0.00023504,2]
[345263582,1734121838672,-500.0,0.00023504,2]
[345263584,1734121838682,-500.0,0.00023504,2]
[345263586,1734121838690,-500.0,0.00023504,2]
[345263588,1734121838700,-300.0,0.00023504,2]
[345263590,1734121838709,-300.0,0.00023504,2]
[345263592,1734121838718,-9118.22937306,0.00023505,2]
[345263763,1734121840526,-110016.61230773,0.00023505,2]
[345263765,1734121840538,-7930.21072501,0.00023505,2]
[345265200,1734122675017,230.727055,0.00013973,2]
[345265333,1734122977240,-15468.07427918,0.0002715,120]
[345265334,1734122977437,-598.154,0.0002715,120]
[345265335,1734122977511,-835.62272082,0.0002715,120]
[345265336,1734122977591,-598.149,0.0002715,120]
[345265409,1734123038642,-230.727055,0.00020447,2]
[345265411,1734123038652,-617.810953,0.00021263,2]
[345265413,1734123038661,-258.3368012,0.00021355,2]
[345265415,1734123038670,-172.472445,0.00021783,2]
[345265417,1734123038679,-788.88549846,0.000219,2]
[345265419,1734123038688,-300.0,0.00021977,2]
[345265421,1734123038698,-300.0,0.00021977,2]
[345265423,1734123038708,-16537.7947621,0.00021978,2]
[345265425,1734123038717,-395.0,0.00022,2]
[345265427,1734123038727,-395.0,0.00022192,2]
[345265429,1734123038737,-587.090791,0.00022312,2]
[345265431,1734123038746,-395.0,0.00022466,2]
[345265434,1734123038756,-363.166271,0.000227,2]
[345265436,1734123038765,-395.0,0.0002274,2]
[345265438,1734123038774,-24900.0,0.00022799,2]
[345265440,1734123038784,-363.166271,0.00022912,2]
[345265442,1734123038794,-1617.41528835,0.00022914,2]
[345265444,1734123038805,-54.00476212,0.00022914,2]
[345265446,1734123038817,-395.0,0.00023014,2]
[345265448,1734123038826,-395.0,0.00023014,2]
[345265450,1734123038835,-363.166271,0.00023124,2]
[345265452,1734123038844,-400.0,0.00023288,2]
[345265454,1734123038853,-363.166271,0.00023336,2]
[345265456,1734123038863,-179.86800089,0.000234,2]
[345265458,1734123038872,-179.86800089,0.000234,2]
[345265460,1734123038881,-173.367361,0.0002351,2]
[345265462,1734123038893,-363.166271,0.00023548,2]
[345265464,1734123038902,-276.1465297,0.00023562,2]
[345265466,1734123038911,-363.166271,0.0002376,2]
[345265468,1734123038921,-420.0,0.00023882,2]
[345265470,1734123038930,-70.15684491,0.00023954,2]
[345265473,1734123038941,-1601.2632055,0.00023954,2]
[345265475,1734123038950,-363.166271,0.00023972,2]
[345265477,1734123038959,-400.0,0.00024149,2]
[345265479,1734123038968,-406.0,0.00024164,2]
[345265481,1734123038978,-395.0,0.00024164,2]
[345265483,1734123038987,-420.0,0.00024175,2]
[345265485,1734123038996,-363.166271,0.00024185,2]
[345265487,1734123039006,-571.99109465,0.00024375,2]
[345265490,1734123039125,-363.166271,0.00024397,2]
[345265492,1734123039135,-151.0,0.00024658,7]
[345265494,1734123039144,-599.084,0.0002467,2]
[345265496,1734123039153,-192.442,0.00024842,8]
[345265498,1734123039162,-1671.42005041,0.00024994,2]
[345265500,1734123039171,-29825.08093415,0.00025,7]
[345265502,1734123039181,-5520.02610202,0.00025,7]
[345265504,1734123039190,-151.0,0.00025,7]
[345265506,1734123039199,-151.0,0.00025,7]
[345265508,1734123039208,-151.0,0.00025,7]
[345265510,1734123039217,-151.0,0.00025,7]
[345265512,1734123039226,-153.970133,0.00025,7]
[345265514,1734123039235,-151.0,0.00025,7]
[345265516,1734123039245,-151.0,0.00025,7]
[345265518,1734123039254,-296.046866,0.00025,7]
[345265520,1734123039263,-151.0,0.00025,7]
[345265522,1734123039273,-151.0,0.00025,7]
[345265524,1734123039282,-151.0,0.00025,7]
[345265526,1734123039292,-151.0,0.00025,7]
[345265528,1734123039301,-381.658528,0.00025,7]
[345265530,1734123039310,-381.658528,0.00025,7]
[345265532,1734123039319,-400.0,0.00025011,2]
[345265534,1734123039329,-395.0,0.00025131,2]
[345265536,1734123039338,-740.24590284,0.00025204,2]
[345265538,1734123039347,-151.0,0.00025305,7]
[345265540,1734123039357,-151.0,0.00025305,7]
[345265542,1734123039366,-467.61147,0.00025305,7]
[345265544,1734123039376,-467.61147,0.00025305,7]
[345265546,1734123039385,-151.0,0.00025305,7]
[345265548,1734123039394,-226.392864,0.00025305,7]
[345265550,1734123039403,-605.623047,0.00025305,7]
[345265552,1734123039412,-605.623047,0.00025305,7]
[345265554,1734123039421,-151.0,0.00025305,7]
[345265556,1734123039431,-151.0,0.00025305,7]
[345265558,1734123039440,-927.996285,0.00025305,7]
[345265560,1734123039448,-151.0,0.00025305,7]
[345265562,1734123039458,-188.94438,0.00025305,7]
[345265564,1734123039467,-151.0,0.00025305,7]
[345265566,1734123039476,-927.996285,0.00025305,7]
[345265568,1734123039485,-151.0,0.00025305,7]
[345265570,1734123039494,-151.0,0.00025305,7]
[345265572,1734123039503,-151.0,0.00025305,7]
[345265574,1734123039513,-151.0,0.00025305,7]
[345265576,1734123039521,-198.715534,0.00025305,7]
[345265578,1734123039531,-161.074991,0.00025305,7]
[345265580,1734123039540,-381.162869,0.00025305,7]
[345265583,1734123039551,-151.0,0.00025305,7]
[345265584,1734123039560,-381.162869,0.00025305,7]
[345265587,1734123039570,-151.0,0.00025305,7]
[345265589,1734123039579,-151.0,0.00025305,7]
[345265591,1734123039588,-151.0,0.00025305,7]
[345265593,1734123039597,-822.46102521,0.00025306,2]
[345265595,1734123039607,-381.658528,0.00025306,7]
[345265597,1734123039616,-381.658528,0.00025306,7]
[345265599,1734123039625,-151.0,0.00025306,7]
[345265601,1734123039635,-153.292022,0.00025306,7]
[345265603,1734123039644,-467.61147,0.00025306,7]
[345265605,1734123039653,-467.61147,0.00025306,7]
[345265607,1734123039662,-395.0,0.00025315,2]
[345265608,1734123039672,-279.22232655,0.00025346,2]
[345265611,1734123039681,-500.0,0.00025346,2]
[345265613,1734123039690,-201.14809913,0.00025346,2]
[345265615,1734123039699,-500.0,0.00025346,2]
[345265617,1734123039708,-500.0,0.00025346,2]
[345265619,1734123039718,-500.0,0.00025346,2]
[345265621,1734123039727,-500.0,0.00025346,2]
[345265623,1734123039737,-369.0425809,0.00025346,2]
[345265624,1734123039747,-500.0,0.00025346,2]
[345265627,1734123039757,-500.0,0.00025346,2]
[345265629,1734123039766,-500.0,0.00025346,2]
[345265631,1734123039775,-500.0,0.00025346,2]
[345265633,1734123039784,-500.0,0.00025346,2]
[345265635,1734123039793,-157.75391629,0.00025346,2]
[345265637,1734123039803,-500.0,0.00025346,2]
[345265639,1734123039814,-500.0,0.00025346,2]
[345265640,1734123039823,-500.0,0.00025346,2]
[345265643,1734123039833,-500.0,0.00025346,2]
[345265644,1734123039842,-500.0,0.00025346,2]
[345265646,1734123039851,-500.0,0.00025346,2]
[345265649,1734123039862,-500.0,0.00025346,2]
[345265650,1734123039871,-500.0,0.00025346,2]
[345265652,1734123039896,-500.0,0.00025346,2]
[345265655,1734123039905,-500.0,0.00025346,2]
[345265656,1734123039915,-500.0,0.00025346,2]
[345265659,1734123039925,-500.0,0.00025346,2]
[345265661,1734123039938,-500.0,0.00025346,2]
[345265663,1734123039948,-500.0,0.00025346,2]
[345265665,1734123039957,-500.0,0.00025346,2]
[345265667,1734123039967,-500.0,0.00025346,2]
[345265668,1734123039976,-500.0,0.00025346,2]
[345265670,1734123039986,-500.0,0.00025346,2]
[345265672,1734123039996,-500.0,0.00025346,2]
[345265674,1734123040005,-500.0,0.00025346,2]
[345265677,1734123040015,-500.0,0.00025346,2]
[345265679,1734123040024,-500.0,0.00025346,2]
[345265681,1734123040033,-500.0,0.00025346,2]
[345265683,1734123040043,-500.0,0.00025346,2]
[345265685,1734123040052,-500.0,0.00025346,2]
[345265687,1734123040062,-500.0,0.00025346,2]
[345265689,1734123040071,-500.0,0.00025346,2]
[345265691,1734123040080,-500.0,0.00025346,2]
[345265693,1734123040091,-500.0,0.00025346,2]
[345265695,1734123040100,-59.58907182,0.00025346,2]
[345265931,1734123043879,-440.41092818,0.00025346,2]
[345265932,1734123043891,-500.0,0.00025346,2]
[345265933,1734123043910,-500.0,0.00025346,2]
[345265934,1734123043919,-151.0,0.00025347,7]
[345265935,1734123043928,-151.0,0.00025347,7]
[345265936,1734123043937,-20.69149409,0.00025347,7]
[345265959,1734123046687,-296.0,0.00024932,2]
[345265960,1734123046697,-296.0,0.00025,2]
[345265961,1734123046706,-130.30850591,0.00025347,7]
[345265962,1734123046716,-151.0,0.00025347,7]
[345265963,1734123046726,-151.0,0.00025347,7]
[345265964,1734123046736,-151.0,0.00025347,7]
[345265965,1734123046745,-151.0,0.00025347,7]
[345265966,1734123046754,-154.515049,0.00025347,7]
[345265967,1734123046764,-151.0,0.00025347,7]
[345265968,1734123046774,-151.0,0.00025347,7]
[345265969,1734123046783,-151.0,0.00025348,7]
[345265970,1734123046793,-151.0,0.00025348,7]
[345265971,1734123046803,-151.0,0.00025348,7]
[345265972,1734123046813,-381.162869,0.00025348,7]
[345265973,1734123046825,-151.0,0.00025348,7]
[345265974,1734123046834,-238.44048381,0.00025348,7]
[345265977,1734123654882,223.865729,0.00013973,2]
[345265978,1734123865308,153.05978901,0.0002,2]
[345266038,1734124231865,-223.865729,0.00020447,2]
[345266040,1734124231874,-172.472445,0.00023026,2]
[345266042,1734124231883,-455.6966815,0.00023195,2]
[345266044,1734124231893,-165.9051445,0.00023586,2]
[345266048,1734124231921,-354.5920137,0.00023586,2]
[345266049,1734124231931,-300.0,0.00023629,2]
[345266052,1734124231940,-300.0,0.00023629,2]
[345266053,1734124231949,-37.4577818,0.0002363,2]
[345266062,1734124232038,-711.5481456,0.0002363,2]
[345266065,1734124232049,-1313.1447513,0.0002363,2]
[345266155,1734124237826,-4593.95180916,0.0002363,2]
[345266287,1734124239844,-18243.89751214,0.0002363,2]
[345266289,1734124239853,-302.947762,0.00023802,2]
[345266291,1734124239863,-589.91224973,0.0002398,2]
[345266292,1734124239872,-646.094,0.0002408,2]
[345266293,1734124239882,-1225.0526919,0.00024428,2]
[345266294,1734124239891,-635.78609,0.00024649,2]
[345266295,1734124239901,-302.947762,0.00024682,2]
[345266296,1734124239911,-222.0,0.00024932,2]
[345266297,1734124239921,-222.0,0.00025,2]
[345266298,1734124239930,-157.5983848,0.00025092,4]
[345266299,1734124239942,-29.0316395,0.00025115,15]
[345266352,1734124245724,-192.442,0.00025205,9]
[345266353,1734124245734,-634.11269,0.000253,7]
[345266358,1734124571567,217.999526,0.00013973,2]
[345266461,1734125431967,-489.013393,0.00020225,2]
[345266463,1734125431978,-300.0,0.00020346,2]
[345266465,1734125431988,-184.57190001,0.00020346,2]
[345266478,1734125432101,-115.42809999,0.00020346,2]
[345266480,1734125432110,-2960.98361124,0.00020347,2]
[345266482,1734125432119,-1678.1167891,0.00020347,2]
[345266485,1734125432129,-166.64369727,0.00020347,2]
[345266487,1734125432138,-230.18807246,0.00020446,2]
[345266488,1734125432147,-158.42806534,0.00020446,2]
[345266720,1734125437900,-341.57193466,0.00020446,2]
[345266721,1734125437910,-282.79428146,0.00020446,2]
[345266722,1734125437920,-500.0,0.00020446,2]
[345266723,1734125437929,-183.34453036,0.00020446,2]
[345266724,1734125437939,-160.0,0.00020446,2]
[345266725,1734125437948,-2434.8892535,0.00020447,4]
[345266736,1734125440001,-12527.08669695,0.00020447,4]
[345266765,1734125601530,223.581758,0.00013973,2]
[345266766,1734125642648,200.0,0.000256,60]
[345266768,1734125936978,172.472445,0.00019748,2]
[345266770,1734125957637,1275.6823823,0.00020182,2]
[345266774,1734126188436,186.0,0.000256,60]
[345266775,1734126263758,330.06687,0.00019695,2]
[345266777,1734126502350,237.096521,0.00013973,2]
[345266829,1734126632212,-656.29837822,0.00020347,2]
[345266837,1734126632273,-558.21120081,0.00020347,2]
[345266844,1734126632334,-295.79553116,0.00020347,2]
[345266846,1734126632344,-1067.47539948,0.00020347,2]
[345266848,1734126632354,-1431.0,0.00020378,10]
[345266850,1734126632364,-500.0,0.00020446,2]
[345266852,1734126632374,-300.0,0.00020446,2]
[345266854,1734126632384,-300.0,0.00020446,2]
[345266856,1734126632394,-163.48180846,0.00020446,2]
[345266858,1734126632406,-441238.31232953,0.00020447,4]
[345266862,1734126632428,-1866.5,0.00020447,4]
[345266864,1734126632441,-1100.89151516,0.00020447,4]
[345267278,1734126638300,-329.84879696,0.00020447,4]
[345267355,1734126643435,-1224.574558,0.00020447,4]
[345267356,1734126643552,-4670.48731053,0.00020447,4]
[345267357,1734126643566,-691.15,0.00020447,4]
[345267363,1734126646258,-347.0,0.00020447,4]
[345267381,1734127380105,244.655091,0.00013973,2]
[345267439,1734127832351,-1237.83164773,0.00020347,2]
[345267441,1734127832365,-300.0,0.00020446,2]
[345267443,1734127832376,-300.0,0.00020446,2]
[345267445,1734127832385,-166.39097292,0.00020446,2]
[345267447,1734127832395,-1114.60391166,0.00020447,4]
[345267454,1734127832451,-3048.53765429,0.00020447,4]
[345267457,1734127832462,-9322.39738026,0.00020447,4]
[345267459,1734127832474,-17799.90281148,0.00020447,4]
[345267653,1734127838335,-4710.13376355,0.00020447,4]
[345267654,1734127838347,-1199.45074879,0.00020447,4]
[345267735,1734127840412,-158067.74352137,0.00020447,4]
[345267860,1734127933725,685.606,0.0001943,2]
[345267861,1734127952274,24900.0,0.00020112,2]
[345267862,1734128284237,262.650526,0.00013973,2]
[345267863,1734128394533,2630.75476816,0.00020146,2]
[345267864,1734128504073,13900.0,0.0002,2]
[345267865,1734128595520,657.154,0.0001943,2]
[345267866,1734128609305,250.0,0.00019396,2]
[345267869,1734128868800,267.546676,0.00019396,2]
[345267892,1734128962758,162.231206,0.00019178,2]
[345267898,1734129016728,1725.2480251,0.00019577,2]
[345267954,1734129032717,-180.21521658,0.00020245,2]
[345267956,1734129032728,-442.389129,0.00020296,2]
[345267958,1734129032742,-122.89701762,0.00020345,2]
[345268318,1734129046610,-177.10298238,0.00020345,2]
[345268319,1734129046620,-300.0,0.00020345,2]
[345268320,1734129046630,-262.38177762,0.00020346,2]
[345268321,1734129046642,-428.32949418,0.00020346,2]
[345268322,1734129067829,2082.89687304,0.00020222,2]
[345268324,1734129158756,651.56,0.0001943,2]
[345268325,1734129205098,2432.0884309,0.000202,2]
[345268326,1734129276504,6462.0322987,0.00019654,2]
[345268327,1734129289880,4027.3776903,0.00019811,2]
[345268328,1734129515299,250.0,0.00019654,2]
[345268330,1734129627323,150.51,0.00020219,2]
[345268331,1734129684002,485.29757,0.00019748,2]
[345268332,1734129778509,168.852205,0.00019591,2]
[345268333,1734129778743,168.852205,0.00019689,2]
[345268334,1734129780903,624.205,0.0001943,2]
[345268335,1734129831432,169.941168,0.00019471,2]
[345268336,1734129919220,1221.7737894,0.00019633,2]
[345268340,1734129938406,24838.3763643,0.00020136,2]
[345268344,1734130049058,24900.0,0.00019633,2]
[345268384,1734130232691,-871.92046557,0.00020236,2]
[345268387,1734130232716,-1055.37,0.00020236,2]
[345268399,1734130232820,-703.46430259,0.00020236,2]
[345268401,1734130232830,-1546.03025124,0.00020236,2]
[345268403,1734130232840,-301.04308994,0.00020344,2]
[345268405,1734130232850,-301.04308993,0.00020346,2]
[345268407,1734130232859,-301.04308993,0.00020347,2]
[345268409,1734130232869,-182.3,0.00020437,2]
[345268411,1734130232882,-300.0,0.00020444,2]
[345268413,1734130232891,-300.0,0.00020444,2]
[345268415,1734130232900,-801.30366289,0.00020445,2]
[345268417,1734130232910,-15629.03974797,0.00020447,4]
[345268419,1734130232919,-500.0,0.00020447,4]
[345268421,1734130232928,-500.0,0.00020447,4]
[345268423,1734130232938,-500.0,0.00020447,4]
[345268425,1734130232947,-500.0,0.00020447,4]
[345268427,1734130232957,-266.56864416,0.00020447,4]
[345268429,1734130232966,-460.92762151,0.00020447,4]
[345268431,1734130232975,-262.650526,0.00020447,2]
[345268433,1734130232984,-181.552526,0.00021057,2]
[345268435,1734130232994,-663.4523128,0.000211,2]
[345268437,1734130233003,-212.7894965,0.000211,2]
[345268439,1734130233012,-304.8206204,0.000211,2]
[345268441,1734130233022,-181.552526,0.00021372,2]
[345268443,1734130233032,-351.3853278,0.00021671,2]
[345268445,1734130233042,-351.3853278,0.00021671,2]
[345268447,1734130233052,-181.552526,0.00021686,2]
[345268449,1734130233062,-351.3853278,0.000217,2]
[345268451,1734130233071,-181.552526,0.00022001,2]
[345268453,1734130233081,-420.0,0.00022251,2]
[345268455,1734130233091,-181.552526,0.00022316,2]
[345268457,1734130233100,-420.0,0.00022488,2]
[345268459,1734130233110,-181.552526,0.00022631,2]
[345268461,1734130233120,-306.0,0.00022904,2]
[345268463,1734130233132,-306.0,0.00022904,2]
[345268465,1734130233142,-306.0,0.00022904,2]
[345268467,1734130233152,-400.0,0.00023288,2]
[345268469,1734130233162,-250.601078,0.00023562,2]
[345268470,1734130233172,-402.93312002,0.000236,2]
[345268472,1734130233182,-509.40628979,0.00024,2]
[345268474,1734130233191,-400.0,0.00024149,2]
[345268476,1734130233201,-587.0,0.00024218,2]
[345268478,1734130233211,-500.0,0.00024348,7]
[345268480,1734130233221,-500.0,0.00024348,7]
[345268482,1734130233231,-500.0,0.00024348,7]
[345268484,1734130233240,-500.0,0.00024348,7]
[345268486,1734130233250,-500.0,0.00024348,7]
[345268488,1734130233260,-500.0,0.00024348,7]
[345268490,1734130233269,-500.0,0.00024348,7]
[345268492,1734130233279,-500.0,0.00024348,7]
[345268494,1734130233288,-500.0,0.00024348,7]
[345268496,1734130233298,-475.77,0.00024348,7]
[345268509,1734130233424,-500.0,0.00024348,7]
[345268511,1734130233434,-250.532,0.00024603,2]
[345268513,1734130233443,-533.0,0.00024603,2]
[345268515,1734130233453,-2158.0,0.00024603,2]
[345268517,1734130233464,-2370.0,0.00024603,2]
[345268519,1734130233473,-380.264,0.00024603,2]
[345268521,1734130233483,-1000.0,0.00024663,2]
[345268523,1734130233492,-1000.0,0.00024672,2]
[345268525,1734130233501,-1000.0,0.00024692,2]